Cogmind - Beta 13 *** ADVENTURER MODE // 2024.04.06 @ 18:06:02 Player: bob Result: Destroyed by S-10 Pest with Light Assault Rifle Performance ------------- Evolutions (1) 500 Regions Visited (3) 600 Robots Destroyed (26) 130 Value Destroyed (621) 621 Prototype IDs (0) 0 Alien Tech Used (0) 0 Bonus (0) 0 TOTAL SCORE: 1851 Bonus ------- None Cogmind --------- Core Integrity 0/400 Matter 120/300 Energy 100/100 System Corruption 0% Temperature Cool (0) Movement Core (150) Ox2 Location -9/Materials Parts ------- > --- POWER (2) -------- (None) > --- PROPULSION (3) --- (None) > --- UTILITY (2) ------ Small Storage Unit > --- WEAPON (2) ------- Assault Rifle > --- INVENTORY (8) ---- Particle Charger Shock Rifle Medium Laser Mining Laser Peak State ------------ > --- POWER ------------ Light Ion Engine > --- PROPULSION ------- Light Treads Light Treads > --- UTILITY ---------- Small Storage Unit Advanced Weight Redist. System > --- WEAPON ----------- Grenade Launcher Plasma Cutter > --- INVENTORY -------- Aluminum Leg Aluminum Leg Particle Charger Shock Rifle Medium Laser Assault Rifle Mining Laser [Rating: 11] Favorites ----------- Power Light Ion Engine Engine Light Ion Engine Propulsion Aluminum Leg Treads Light Treads Leg Aluminum Leg Utility Small Storage Unit Device Advanced Weight Redist. System Storage Small Storage Unit Protection Hardened Light Armor Plating Weapon Assault Rifle Energy Gun Shock Rifle Ballistic Gun Assault Rifle Launcher Grenade Launcher Special Weapon Plasma Cutter Build | -11 -10 -10 -9 ------- Run | Yrd Mat Min Mat Slots Evolved 2 | . . . 2 Power 1 | . . . 1 Propulsion 1 | . . . 1 Utility . | . . . . Weapon . | . . . . Parts Attached 14 | . 2 . 12 Power 3 | . 2 . 1 Engine 3 | . 2 . 1 Core . | . . . . Reactor . | . . . . Propulsion 3 | . . . 3 Treads 2 | . . . 2 Leg 1 | . . . 1 Wheel . | . . . . Hover . | . . . . Flight . | . . . . Utility 3 | . . . 3 Device 2 | . . . 2 Storage . | . . . . Processor . | . . . . Hackware . | . . . . Protection 1 | . . . 1 Artifact . | . . . . Weapon 5 | . . . 5 Energy Gun 2 | . . . 2 Energy Cannon . | . . . . Ballistic Gun 1 | . . . 1 Ballistic Cannon . | . . . . Launcher 1 | . . . 1 Special Weapon 1 | . . . 1 Impact Weapon . | . . . . Slashing Weapon . | . . . . Piercing Weapon . | . . . . Special Melee Weapon . | . . . . Unidentified Prototypes . | . . . . Parts Lost 6 | . 1 . 5 Power 1 | . . . 1 Propulsion 1 | . . . 1 Utility 1 | . . . 1 Weapon 3 | . 1 . 2 Highest Loss Streak 3 | . 1 . 3 To Critical Strikes . | . . . . Average Slot Usage (%) 68 | . 77 71 61 Engine 10 | . 14 14 7 Treads 6 | . . . 13 Leg 16 | . 28 28 4 Device 1 | . . . 2 Storage 12 | . 14 14 11 Protection 3 | . . . 6 Ballistic Gun 12 | . 20 14 5 Launcher 3 | . . . 7 Special Weapon 1 | . . . 2 Naked Turns . | . . . . Heaviest Build 18 | 11 13 12 18 Greatest Support 49 | 20 20 20 49 Greatest Overweight (x) 3 | . . . 3 Average Overweight (x) . | . . . . Largest Inventory Capacity 8 | 8 8 8 8 Average Capacity 8 | 8 8 8 8 Most Carried 8 | 6 7 7 8 Average Carried 6 | 6 6 7 6 Final Capacity 8 | 8 8 8 8 Final Carried 7 | 6 7 7 4 Class Distribution -------------------- 100% | Mutant Dominant Class ---------------- Mutant | -10/Materials Mutant | -10/Mines Mutant | -9/Materials Resources | -11 -10 -10 -9 ----------- Run | Yrd Mat Min Mat Matter Collected 392 | 200 119 . 73 Remotely . | . . . . Salvage Created 736 | . 297 . 439 Parts 49 | . 21 . 28 Haulers Intercepted 1 | . . . 1 Recyclers Shooed . | . . . . Parts Field Recycled . | . . . . Retrieved Matter . | . . . . Parts Self-Destructed . | . . . . Prevented . | . . . . Kills | -11 -10 -10 -9 ------- Run | Yrd Mat Min Mat Combat Hostiles Destroyed 18 | . 7 . 11 Guns 12 | . 7 . 5 AOE 6 | . . . 6 Classes Destroyed 9 | . 3 . 6 Worker 1 | . . . 1 Builder 1 | . . . 1 Hauler 1 | . . . 1 Recycler 1 | . . . 1 Watcher 4 | . 2 . 2 Swarmer 5 | . 3 . 2 Grunt 10 | . 4 . 6 Brawler 2 | . . . 2 Sentry 1 | . . . 1 Best Kill Streak 3 | . 3 . 3 Combat Bots Only 2 | . 2 . 2 Max Kills in Single Turn 2 | . 1 . 2 Gunslinging . | . . . . Exploded 2 | . . . 2 Melee . | . . . . Uniques/NPCs Destroyed . | . . . . Combat | -11 -10 -10 -9 -------- Run | Yrd Mat Min Mat Hostile Shots Fired 201 | . 42 . 159 Missed 55 | . 6 . 49 Damage Taken 1396 | . 305 . 1091 Core 455 | . 55 . 400 Absorbed by Shields . | . . . . Ignored by Resistances 436 | . 97 . 339 Core Remaining (%) 89 | 100 . 78 . Volleys Fired 46 | . 27 . 19 Largest 2 | . 2 . 2 Hottest 50 | . 40 . 50 Shots Fired 75 | . 49 . 26 Gun 60 | . 49 . 11 Cannon . | . . . . Launcher 15 | . . . 15 Special . | . . . . Kinetic 58 | . 49 . 9 Thermal 1 | . . . 1 Explosive 15 | . . . 15 Electromagnetic 1 | . . . 1 Robot Hit Streak 14 | . 10 . 14 Robot Miss Streak 3 | . 3 . 1 Penetration Max . | . . . . Secondary Targets . | . . . . Shots Hit Robots 56 | . 37 . 19 Core Hits 45 | . 16 . 29 Critical Kills . | . . . . Critical Parts Destroyed 1 | . 1 . . Critical Strikes 1 | . 1 . . Destroy 1 | . 1 . . Melee Attacks . | . . . . Impact . | . . . . Slashing . | . . . . Piercing . | . . . . Sneak Attacks . | . . . . Combat Hostiles . | . . . . Follow-up Attacks . | . . . . Damage Inflicted 1136 | . 379 . 757 Guns 496 | . 379 . 117 Cannons . | . . . . Explosions 634 | . . . 634 Melee . | . . . . Ramming 6 | . . . 6 Kinetic 463 | . 379 . 84 Thermal 12 | . . . 12 Explosive 634 | . . . 634 Electromagnetic 21 | . . . 21 Impact . | . . . . Slashing . | . . . . Piercing . | . . . . Highest Corruption . | . . . . Average Corruption . | . . . . Corruption Purged . | . . . . Corruption Blocked . | . . . . Overload Shots . | . . . . Overflow Damage . | . . . . Projectiles . | . . . . Explosions . | . . . . Melee . | . . . . Knockbacks . | . . . . Impact . | . . . . Kinetic . | . . . . Secondary . | . . . . Self-Inflicted Damage 173 | . . . 173 Shots 7 | . . . 7 Rammed 5 | . . . 5 Targets Rammed 6 | . . . 6 Kicked . | . . . . Crushed 1 | . . . 1 Highest Temperature 12 | . 12 . 10 Average Temperature 6 | . 7 . 5 Received Heat Transfer 609 | . 180 . 429 Siege Activations . | . . . . Robots Corrupted . | . . . . Combat Hostiles . | . . . . Parts Fried . | . . . . Impact Corruptions . | . . . . Robots Melted . | . . . . Combat Hostiles . | . . . . Parts Melted . | . . . . Heat Transferred 37 | . . . 37 Parts Sabotaged . | . . . . Parts Stolen . | . . . . Parts Stripped . | . . . . Power Chain Reactions . | . . . . Alert | -11 -10 -10 -9 ------- Run | Yrd Mat Min Mat Peak Influence 252 | . 252 30 188 Initial 30 | . . 30 9 Average 79 | . 95 30 83 Maximum Alert Level 1 | . 1 . . Low Security (%) 93 | 100 83 100 100 Level 1 6 | . 16 . . Level 2 . | . . . . Level 3 . | . . . . Level 4 . | . . . . Level 5 . | . . . . High Security . | . . . . Max Security . | . . . . Squads Dispatched 1 | . . . 1 Investigation 1 | . . . 1 Extermination . | . . . . Reinforcement . | . . . . Assault . | . . . . Garrison . | . . . . Intercept . | . . . . Searches Triggered . | . . . . Construction Impeded . | . . . . Haulers Reinforced . | . . . . Active Scanning Responses . | . . . . Cargo Convoy Interrupts . | . . . . Stealth | -11 -10 -10 -9 --------- Run | Yrd Mat Min Mat Distress Signals 3 | . 2 . 1 Communications Jammed . | . . . . Distress Signals . | . . . . Times Spotted 34 | . 15 . 19 Peak Tracking Total 5 | . 4 . 5 Tactical Retreats 4 | . 3 . 1 Traps | -11 -10 -10 -9 ------- Run | Yrd Mat Min Mat Traps Triggered 1 | . . . 1 Indirectly . | . . . . Trap Hack Attempts . | . . . . Triggered . | . . . . Disarmed . | . . . . Reprogrammed . | . . . . Reused . | . . . . Traps Extracted . | . . . . Installed . | . . . . Triggered . | . . . . Machines | -11 -10 -10 -9 ---------- Run | Yrd Mat Min Mat Machines Disabled 1 | . . . 1 Max in Single Turn 1 | . . . 1 Machines Repaired . | . . . . Machines Dismantled . | . . . . Machines Sabotaged . | . . . . Overloaded Fab Kills . | . . . . Hacking | -11 -10 -10 -9 --------- Run | Yrd Mat Min Mat Machines Accessed 2 | . 1 . 1 Terminals 2 | . 1 . 1 Fabricators . | . . . . Repair Stations . | . . . . Recycling Units . | . . . . Scanalyzers . | . . . . Garrison Access . | . . . . Total Hacks 2 | . 1 . 1 Successful 1 | . . . 1 Failed 1 | . 1 . . Catastrophic . | . . . . Database Lockouts . | . . . . Manual . | . . . . Terminals 2 | . 1 . 1 Fabricators . | . . . . Repair Stations . | . . . . Recycling Units . | . . . . Scanalyzers . | . . . . Garrison Access . | . . . . Terminal Hacks 1 | . . . 1 Alert Level 1 | . . . 1 Fabricator Hacks . | . . . . Repair Station Hacks . | . . . . Recycling Unit Hacks . | . . . . Scanalyzer . | . . . . Garrison Access Hacks . | . . . . Unauthorized Hacks . | . . . . Terminals . | . . . . Fabricators . | . . . . Repair Stations . | . . . . Recycling Units . | . . . . Scanalyzers . | . . . . Garrison Access . | . . . . Data Cores Recovered . | . . . . Used . | . . . . Hacking Detections 1 | . 1 . . Full Trace Events . | . . . . Feedback Events . | . . . . Feedback Blocked . | . . . . Robot Schematics Acquired . | . . . . Robots Built . | . . . . Authchips . | . . . . Time . | . . . . Total Robot Build Rating . | . . . . Part Schematics Acquired . | . . . . Parts Built . | . . . . Authchips . | . . . . Time . | . . . . Total Part Build Rating . | . . . . Parts Repaired . | . . . . Time . | . . . . Parts Recycled . | . . . . Recycled Matter . | . . . . Retrieved Matter . | . . . . Retrieved Components . | . . . . Parts Scanalyzed . | . . . . Part Schematics Acquired . | . . . . Parts Damaged . | . . . . Bothacking | -11 -10 -10 -9 ------------ Run | Yrd Mat Min Mat Used RIF Installer . | . . . . Robots Hacked . | . . . . Non-combat . | . . . . Combat . | . . . . Robot Hacks Applied . | . . . . Relay Couplers Released . | . . . . Fabnet Peak Effective % . | . . . . Robots Rewired . | . . . . Allies Hacked . | . . . . Hacks Repelled . | . . . . Allies | -11 -10 -10 -9 -------- Run | Yrd Mat Min Mat Total Allies . | . . . . Largest Group . | . . . . Highest-Rated Group . | . . . . Highest-Rated Ally . | . . . . Total Orders . | . . . . Ally Attacks . | . . . . Total Damage . | . . . . Kills . | . . . . Allies Corrupted . | . . . . Allies Melted . | . . . . Intel | -11 -10 -10 -9 ------- Run | Yrd Mat Min Mat Robot Analysis Total . | . . . . Derelict Logs Recovered . | . . . . Drone Launches . | . . . . Drone Recoveries . | . . . . Exploration | -11 -10 -10 -9 ------------- Run | Yrd Mat Min Mat Turns Passed 1683 | 44 634 192 813 Spaces Moved 1090 | 37 402 161 490 Core 73 | . . . 73 Treads 302 | . . . 302 Legs 715 | 37 402 161 115 Wheels . | . . . . Hover . | . . . . Flight . | . . . . Fastest Speed 100 | 120 120 120 100 Average Speed 130 | 120 120 120 143 Slowest Speed 200 | 120 120 120 200 Overloaded Moves . | . . . . Propulsion Burnouts . | . . . . Robots Hopped . | . . . . Cave-ins Triggered . | . . . . Exploration Rate (%) 23 | 3 28 34 28 Regions Visited 3 Branch Regions 1 Pre-discovered Areas . | . . . . Known Exits Taken . | . . . . Unknown Exits Taken 3 | 1 1 1 . Scrap Searched . | . . . . Spaces Dug . | . . . . Terrain Destroyed 102 | . . . 102 Melee . | . . . . Projectile . | . . . . AOE 102 | . . . 102 Terrain Rammed . | . . . . Walls Destroyed . | . . . . Machines Disabled . | . . . . Actions | -11 -10 -10 -9 --------- Run | Yrd Mat Min Mat Total 1277 | 36 509 160 572 Wait 103 | . 76 . 27 Move 1087 | 36 401 160 490 Hop . | . . . . Pick Up 5 | . 1 . 4 Fast Attach 5 | . . . 5 Attach 5 | . 1 . 4 Detach 5 | . 1 . 4 Swap 4 | . 1 . 3 Drop 11 | . 1 . 10 Fire 46 | . 27 . 19 Melee . | . . . . Ram . | . . . . Kick . | . . . . Crush 6 | . . . 6 Escape Stasis . | . . . . Rewire . | . . . . Trap . | . . . . Miscellaneous . | . . . . Route ------- -11/Scrapyard -10/Materials -10/Mines -9/Materials History --------- Turn | Location | Event 1 | -11/Scrapyard | Discovered new exit (range 3) 45 | -11/Scrapyard | Entered Materials 317 | -10/Materials | Build established: Mutant 433 | -10/Materials | Discovered new exit (range 11) 679 | -10/Materials | Entered Mines 793 | -10/Mines | Found a hidden stash of uninstalled traps 855 | -10/Mines | Discovered new exit (range 10) 871 | -10/Mines | Entered Materials 871 | -9/Materials | Evolved 2 slots: Power x1, Propulsion x1 1515 | -9/Materials | Lost 3 parts (1p2w) 1587 | -9/Materials | Core integrity fell below 50% 1655 | -9/Materials | Core integrity fell below 20% 1684 | -9/Materials | Destroyed by S-10 Pest with Light Assault Rifle Last Messages --------------- 01615_ K-01 Serf collects debris. 01619_ U-05 Engineer builds a Wall. 01619_ K-01 Serf collects debris. 01621_ U-05 Engineer lays Concrete. 01622_ Acquired 19 matter. 01622_ U-05 Engineer lays Concrete. 01624_ K-01 Serf collects debris. 01625_ U-05 Engineer lays Concrete. 01625_ U-05 Engineer builds a Wall. 01626_ U-05 Engineer lays Concrete. 01627_ K-01 Serf collects debris. 01627_ U-05 Engineer builds a Wall. 01629_ K-01 Serf collects debris. 01631_ U-05 Engineer builds a Wall. 01634_ K-01 Serf collects debris. 01655_ Triggered Alarm Trap. 01655_ An alarm sounds. 01655_ ALERT: Alarm triggered, dispatching investigation squad. 01658_ U-05 Engineer lays Concrete. 01675_ S-10 Pest destroyed. Map ----- +----------------------------------------------------+ | ????????????????????????????????????????????????? | | ????????????????????????????????????????????????? | | ????????????????????????????????????????????????? | | ????????????????????# ??????????????????????? | | ??????????????????? #?????????????????????? | | ??????????????????? #???######????????????? | | ?????????????????? #??? ###??????????? | | ??????????????????? #??? ??????????? | | ??????????????? ??? #??? ???????????? | | ???????????????" """ #??? ???????????? | | ???????????????" """ #??? #????????????? | | ???????????? ""? """ #???# #?????????????? | | ????????????? ##### #?????????????? | | ????????????? ^ #?????????????? | | ?????????????""" """ +?????????????? | | ?????????# """ """ #?????????????? | | ??????????# """ """ #?????????????? | | ??????????# #?????????????? | | ??????????+ #?????????????? | | ??????????# ####### #?????????????? | | ??????????# #?????# #?????????????? | | ??????????######+##### ##?????# #?????????????? | | ?????????????????????# #??????# #?????????????? | | ?????????????????????#=#??????# #?????????????? | | ????????????????????##+######## #?????????????? | | ????????????????????#*%g@ # ##########????? | | ????????????????????# # # #????? | | ????????????????????# s=# # """ #????? | | ????????????????????# """ """%+* / """ #????? | | ????????????????????# """ """[#= # """ #????? | | ????????????????????# """ """ # # #????? | | ????????????????????# # # """ #????? | | ????????????????????# # # """ #????? | | ????????????????????########### # """ #????? | | ??????????????????????????????# # = #????? | | ??????????????????????????????# ######/###????? | | ???????##############?????????# #????# #??????? | | ???????# #?????????# #????# #??????? | | ???????# #?????????# #????# #??????? | | ???????# """ +?????????# ###### #??????? | | ???????# """ #?????????# ## ! %*#??????? | | ########## """ #????????## ##! ! #?##???? | | # ## #?????????## ## [% ###### | | # " ## ##????????## #![ =%*+ | | # "" ## #????????## #=! !=[#?? | | # "" ## #????????# *%##!![= = ### | | #! """ # =! #????????## ###### = [ % | | # "" + = % ##?##??????# ######=% | | # """ # ! #### ####### % | | # """ ## #####+### ## # ######+##### | +----------------------------------------------------+ Best States ------------- Heat Dissipation 28 Energy Generation 10 Energy Capacity 250 Matter Stores 300 Matter Capacity 300 Sight Range 16 Terrain Scan Density 10 Additional Mass Support 9 Armor Coverage 150 Resistance: KI 20 Resistance: TH 20 Resistance: EX 20 Resistance: EM 20 Resistance: I 20 Resistance: S 20 Resistance: P 20 Evasion (%) 55 Recoil Reduction 2 Particle Charging 15 Offensive Hacking 10 Item Schematics ----------------- None Robot Schematics ------------------ None Fabricated ------------ Nothing Alien Tech Used ----------------- None Achievements -------------- None Challenges ------------ None Game ------ Seed PiercingChargeThrower Manual? 0 Play Time 00:26:27 Cumulative 6.6 hours Start 2024.04.06 @ 17:41:42 End 2024.04.06 @ 18:06:02 Sessions 1 Manual Loads 0 Difficulty Adventurer Special Mode None Game No. 27 Rogue 0 Adventurer 27 Explorer 0 Win Type - Total 0 Types 0/0/0/0/0/0/0/0/0 Lore% 4 Gallery% 10 Achievement% 10 Wizard Run 0 Options --------- Layout 0 ASCII 0 Keyboard 1 Movement Vi Keybinds 0 Fullscreen 1 Font 18/SmallcapsGlow Map View 76x50 Zoom Use 0% Tactical HUD 1 Map Filters NONE Filters NONE Steam 1 RUN: d45c651b-ff37-461c-8541-3e9e4aa91b86